Cogmind - Beta 12 @@@ ROGUE MODE // 2024.02.05 @ 07:56:37 Player: Dosh Result: Destroyed by as-78435 with Assembled Maul Performance ------------- Evolutions (0) 0 Regions Visited (3) 600 Robots Destroyed (29) 145 Value Destroyed (734) 734 Prototype IDs (24) 480 Alien Tech Used (0) 0 Bonus (346) 346 TOTAL SCORE: 2305 Bonus ------- Follower Combat Kills 46 Aligned with FarCom 300 Cogmind --------- Core Integrity 0/250 Matter 282/300 Energy 150/150 System Corruption 0% Temperature Cool (0) Movement Walking (190) Ox1 Location -10/Exiles Parts ------- > --- POWER (1) -------- Light Angular Momentum Engine > --- PROPULSION (2) --- Aluminum Leg Aluminum Leg > --- UTILITY (2) ------ Improved Heat Sink Large Storage Unit > --- WEAPON (2) ------- Improved Assault Rifle Battle Cannon > --- INVENTORY (15) --- Ion Engine Light Ion Engine Wheel Wheel Wheel Small Storage Unit Experimental Sensor Array Hacking Suite Improved Assault Rifle AWS/Gauss Light Cannon Hammer Peak State ------------ > --- POWER ------------ Light Angular Momentum Engine > --- PROPULSION ------- Aluminum Leg Aluminum Leg > --- UTILITY ---------- Improved Heat Sink Large Storage Unit > --- WEAPON ----------- Improved Assault Rifle Improved Assault Rifle > --- INVENTORY -------- Ion Engine Light Ion Engine Wheel Wheel Wheel Small Storage Unit Experimental Sensor Array Hacking Suite AWS/Gauss Light Cannon Battle Cannon Hammer [Rating: 20] Favorites ----------- Power Light Angular Momentum Engine Engine Light Angular Momentum Engine Propulsion Aluminum Leg Treads Light Treads Leg Aluminum Leg Wheel Wheel Utility Large Storage Unit Device Improved Heat Sink Storage Large Storage Unit Protection Light Armor Plating Weapon Improved Assault Rifle Energy Gun Small Laser Ballistic Gun Improved Assault Rifle Ballistic Cannon Battle Cannon Build | -11 -10 -10 -10 ------- Run | Jun Mat Min Exi Slots Evolved . | . . . . Power . | . . . . Propulsion . | . . . . Utility . | . . . . Weapon . | . . . . Parts Attached 25 | 6 11 7 1 Power 3 | 1 1 1 . Engine 3 | 1 1 1 . Core . | . . . . Reactor . | . . . . Propulsion 7 | 2 2 3 . Treads 3 | 2 . 1 . Leg 2 | . . 2 . Wheel 2 | . 2 . . Hover . | . . . . Flight . | . . . . Utility 5 | 1 2 2 . Device 2 | . 1 1 . Storage 2 | 1 1 . . Processor . | . . . . Hackware . | . . . . Protection 1 | . . 1 . Artifact . | . . . . Weapon 10 | 2 6 1 1 Energy Gun 3 | 1 2 . . Energy Cannon . | . . . . Ballistic Gun 6 | 1 4 1 . Ballistic Cannon 1 | . . . 1 Launcher . | . . . . Special Weapon . | . . . . Impact Weapon . | . . . . Slashing Weapon . | . . . . Piercing Weapon . | . . . . Special Melee Weapon . | . . . . Unidentified Prototypes 1 | . 1 . . Parts Lost 8 | . 5 3 . Power 1 | . 1 . . Propulsion 3 | . 2 1 . Utility 1 | . . 1 . Weapon 3 | . 2 1 . Highest Loss Streak 3 | . 2 3 . To Critical Strikes . | . . . . Average Slot Usage (%) 94 | . 88 97 100 Engine 13 | . 13 14 14 Treads 4 | . 7 3 . Leg 12 | . . 17 28 Wheel 7 | . 11 6 . Device 11 | . 13 8 14 Storage 14 | . 14 14 14 Protection 1 | . . 3 . Energy Gun 3 | . 10 . . Ballistic Gun 23 | . 15 28 26 Naked Turns . | . . . . Heaviest Build 38 | 13 32 38 36 Greatest Support 40 | 40 40 20 20 Greatest Overweight (x) 8 | 1 8 3 1 Average Overweight (x) 1 | . 1 1 1 Largest Inventory Capacity 15 | 8 15 15 15 Average Capacity 14 | 6 14 15 15 Most Carried 13 | 3 6 11 13 Average Carried 7 | 1 3 8 11 Final Capacity 15 | 8 15 15 15 Final Carried 13 | 2 6 11 13 Class Distribution -------------------- 54% | Scavenger-Mutant 45% | Mutant Dominant Class ---------------- Mutant | -10/Materials Scavenger-Mutant | -10/Mines Scavenger-Mutant | -10/Exiles Resources | -11 -10 -10 -10 ----------- Run | Jun Mat Min Exi Matter Collected 733 | 258 234 241 . Remotely . | . . . . Salvage Created 1022 | . 642 380 . Parts 72 | . 42 30 . Haulers Intercepted 1 | . 1 . . Recyclers Shooed . | . . . . Parts Field Recycled . | . . . . Retrieved Matter . | . . . . Parts Self-Destructed . | . . . . Prevented . | . . . . Kills | -11 -10 -10 -10 ------- Run | Jun Mat Min Exi Combat Hostiles Destroyed 19 | . 9 10 . Guns 19 | . 9 10 . Classes Destroyed 8 | . 6 2 . Worker 2 | . 1 1 . Builder 3 | . 3 . . Hauler 1 | . 1 . . Recycler 1 | . 1 . . Operator 3 | . 3 . . Swarmer 3 | . . 3 . Grunt 14 | . 9 5 . Sentry 2 | . . 2 . Best Kill Streak 5 | . 3 5 . Combat Bots Only 5 | . 2 5 . Max Kills in Single Turn 2 | . 2 1 . Gunslinging . | . . . . Exploded . | . . . . Melee . | . . . . Uniques/NPCs Destroyed . | . . . . Combat | -11 -10 -10 -10 -------- Run | Jun Mat Min Exi Damage Taken 1239 | . 726 469 44 Core 254 | . 168 42 44 Absorbed by Shields . | . . . . Core Remaining (%) 100 | 100 . . . Volleys Fired 106 | . 78 27 1 Largest 2 | . 2 2 2 Hottest 80 | . 80 46 62 Shots Fired 187 | . 131 54 2 Gun 186 | . 131 54 1 Cannon 1 | . . . 1 Launcher . | . . . . Special . | . . . . Kinetic 143 | . 87 54 2 Thermal 34 | . 34 . . Explosive . | . . . . Electromagnetic 10 | . 10 . . Robot Hit Streak 15 | . 15 15 . Robot Miss Streak 3 | . 3 1 . Penetration Max . | . . . . Secondary Targets 1 | . . 1 . Max Gunslinging Chain 1 | . . 1 . Shots Hit Robots 137 | . 91 46 . Core Hits 49 | . 33 16 . Critical Kills 1 | . . 1 . Critical Parts Destroyed . | . . . . Critical Strikes 1 | . . 1 . Destroy 1 | . . 1 . Melee Attacks . | . . . . Impact . | . . . . Slashing . | . . . . Piercing . | . . . . Sneak Attacks . | . . . . Combat Hostiles . | . . . . Follow-up Attacks . | . . . . Damage Inflicted 1768 | . 1040 728 . Guns 1753 | . 1033 720 . Cannons . | . . . . Explosions . | . . . . Melee . | . . . . Ramming 15 | . 7 8 . Kinetic 1438 | . 718 720 . Thermal 230 | . 230 . . Explosive . | . . . . Electromagnetic 85 | . 85 . . Impact . | . . . . Slashing . | . . . . Piercing . | . . . . Highest Corruption . | . . . . Average Corruption . | . . . . Corruption Purged . | . . . . Corruption Blocked . | . . . . Overload Shots . | . . . . Overflow Damage . | . . . . Projectiles . | . . . . Explosions . | . . . . Melee . | . . . . Knockbacks . | . . . . Impact . | . . . . Kinetic . | . . . . Secondary . | . . . . Self-Inflicted Damage 3 | . 3 . . Shots . | . . . . Rammed 6 | . 2 4 . Targets Rammed 6 | . 2 4 . Kicked . | . . . . Crushed . | . . . . Highest Temperature 159 | . 159 99 . Average Temperature 42 | . 45 35 . Received Heat Transfer 675 | . 435 240 . Siege Activations . | . . . . Robots Corrupted . | . . . . Combat Hostiles . | . . . . Parts Fried . | . . . . Impact Corruptions . | . . . . Robots Melted . | . . . . Combat Hostiles . | . . . . Parts Melted . | . . . . Heat Transferred 525 | . 525 . . Parts Sabotaged . | . . . . Parts Stolen . | . . . . Parts Stripped . | . . . . Power Chain Reactions . | . . . . Missiles Intercepted . | . . . . Alert | -11 -10 -10 -10 ------- Run | Jun Mat Min Exi Peak Influence 178 | . 178 163 . Initial 53 | . . 53 . Average 67 | . 76 64 . Maximum Alert Level . | . . . . Low Security (%) 100 | 100 100 100 . Level 1 . | . . . . Level 2 . | . . . . Level 3 . | . . . . Level 4 . | . . . . Level 5 . | . . . . High Security . | . . . . Max Security . | . . . . Squads Dispatched 6 | . 6 . . Investigation 3 | . 3 . . Extermination . | . . . . Reinforcement 3 | . 3 . . Assault . | . . . . Garrison . | . . . . Intercept . | . . . . Searches Triggered . | . . . . Construction Impeded . | . . . . Haulers Reinforced . | . . . . Active Scanning Responses . | . . . . Cargo Convoy Interrupts . | . . . . Stealth | -11 -10 -10 -10 --------- Run | Jun Mat Min Exi Distress Signals 4 | . 3 1 . Communications Jammed . | . . . . Distress Signals . | . . . . Times Spotted 43 | . 25 11 7 Peak Tracking Total 9 | . 4 3 9 Tactical Retreats . | . . . . Traps | -11 -10 -10 -10 ------- Run | Jun Mat Min Exi Traps Triggered 2 | . 2 . . Indirectly . | . . . . Trap Hack Attempts . | . . . . Triggered . | . . . . Disarmed . | . . . . Reprogrammed . | . . . . Reused . | . . . . Traps Extracted . | . . . . Installed . | . . . . Triggered . | . . . . Machines | -11 -10 -10 -10 ---------- Run | Jun Mat Min Exi Machines Disabled 1 | . . . 1 Max in Single Turn 1 | . . . 1 Machines Repaired . | . . . . Machines Sabotaged . | . . . . Overloaded Fab Kills . | . . . . Hacking | -11 -10 -10 -10 --------- Run | Jun Mat Min Exi Machines Accessed 8 | . 6 . 2 Terminals 5 | . 5 . . Fabricators . | . . . . Repair Stations . | . . . . Recycling Units 1 | . 1 . . Scanalyzers . | . . . . Garrison Access . | . . . . Total Hacks 21 | . 16 . 5 Successful 13 | . 8 . 5 Failed 7 | . 7 . . Catastrophic 1 | . 1 . . Database Lockouts 1 | . 1 . . Manual 14 | . 13 . 1 Terminals 15 | . 15 . . Fabricators . | . . . . Repair Stations . | . . . . Recycling Units 1 | . 1 . . Scanalyzers . | . . . . Garrison Access . | . . . . Terminal Hacks 9 | . 4 . 5 Record 4 | . . . 4 Robot Analysis 2 | . 2 . . Branch Access Points 1 | . 1 . . Recall Investigation 1 | . 1 . . EX-Prototype ID Bank 1 | . . . 1 Fabricator Hacks . | . . . . Repair Station Hacks . | . . . . Recycling Unit Hacks . | . . . . Scanalyzer . | . . . . Garrison Access Hacks . | . . . . Unauthorized Hacks 4 | . 4 . . Terminals 3 | . 3 . . Botnet 2 | . 2 . . Operators 1 | . 1 . . Fabricators . | . . . . Repair Stations . | . . . . Recycling Units 1 | . 1 . . Tunnel 1 | . 1 . . Scanalyzers . | . . . . Garrison Access . | . . . . Data Cores Recovered . | . . . . Used . | . . . . Hacking Detections 5 | . 5 . . Full Trace Events 1 | . 1 . . Feedback Events . | . . . . Feedback Blocked . | . . . . Robot Schematics Acquired . | . . . . Robots Built . | . . . . Authchips . | . . . . Time . | . . . . Total Robot Build Rating . | . . . . Part Schematics Acquired . | . . . . Parts Built . | . . . . Authchips . | . . . . Time . | . . . . Total Part Build Rating . | . . . . Parts Repaired . | . . . . Time . | . . . . Parts Recycled . | . . . . Recycled Matter . | . . . . Retrieved Matter . | . . . . Retrieved Components . | . . . . Parts Scanalyzed . | . . . . Part Schematics Acquired . | . . . . Parts Damaged . | . . . . Bothacking | -11 -10 -10 -10 ------------ Run | Jun Mat Min Exi Used RIF Installer . | . . . . Robots Hacked . | . . . . Non-combat . | . . . . Combat . | . . . . Robot Hacks Applied . | . . . . Relay Couplers Released . | . . . . Fabnet Peak Effective % . | . . . . Robots Rewired . | . . . . Allies Hacked . | . . . . Hacks Repelled . | . . . . Allies | -11 -10 -10 -10 -------- Run | Jun Mat Min Exi Total Allies 3 | . . 3 . Largest Group 3 | . . 3 . Highest-Rated Group 40 | . . 40 . Highest-Rated Ally 16 | . . 16 . Total Orders . | . . . . Ally Attacks 15 | . . 15 . Total Damage 162 | . . 162 . Kills 4 | . . 4 . Allies Corrupted . | . . . . Allies Melted . | . . . . Intel | -11 -10 -10 -10 ------- Run | Jun Mat Min Exi Robot Analysis Total 2 | . 2 . . Derelict Logs Recovered 1 | . . 1 . Drone Launches . | . . . . Drone Recoveries . | . . . . Exploration | -11 -10 -10 -10 ------------- Run | Jun Mat Min Exi Turns Passed 2638 | 76 918 1266 378 Spaces Moved 1408 | 44 541 627 196 Core 11 | 7 4 . . Treads 216 | 37 91 88 . Legs 597 | . . 401 196 Wheels 584 | . 446 138 . Hover . | . . . . Flight . | . . . . Fastest Speed 50 | 50 95 95 190 Average Speed 156 | 145 120 176 190 Slowest Speed 450 | 160 450 330 190 Overloaded Moves . | . . . . Propulsion Burnouts . | . . . . Robots Hopped . | . . . . Cave-ins Triggered . | . . . . Exploration Rate (%) 58 | 3 78 96 58 Regions Visited 3 Branch Regions 2 Pre-discovered Areas 2 | . 1 . 1 Known Exits Taken 1 | . 1 . . Unknown Exits Taken 2 | 1 . 1 . Scrap Searched 2 | . . 2 . Spaces Dug . | . . . . Terrain Destroyed . | . . . . Melee . | . . . . Projectile . | . . . . AOE . | . . . . Terrain Rammed . | . . . . Walls Destroyed . | . . . . Machines Disabled . | . . . . Actions | -11 -10 -10 -10 --------- Run | Jun Mat Min Exi Total 1656 | 53 681 723 199 Wait 95 | . 41 54 . Move 1405 | 43 540 626 196 Hop . | . . . . Pick Up 12 | 3 5 3 1 Fast Attach 19 | 6 8 5 . Attach 3 | . 2 1 . Detach 4 | . 2 2 . Swap 3 | . 1 1 1 Drop 3 | 1 2 . . Fire 106 | . 78 27 1 Melee . | . . . . Ram 2 | . 2 . . Kick . | . . . . Crush 4 | . . 4 . Escape Stasis . | . . . . Rewire . | . . . . Trap . | . . . . Miscellaneous . | . . . . Route ------- -11/Junkyard -10/Materials (discovered 5 exits: [*Mat x3] / *Min x2) -10/Mines (discovered 3 exits: [*Mat x2] / *Exi) -10/Exiles (discovered 2 exits: *Min x2) History --------- Turn | Location | Event 2 | -11/Junkyard | Met Revision 17 8 | -11/Junkyard | Discovered new exit (range 16) 77 | -11/Junkyard | Entered Materials 318 | -10/Materials | Build established: Mutant 424 | -10/Materials | Discovered new exit (range 6) 550 | -10/Materials | Core integrity fell below 50% 588 | -10/Materials | Central database locked down 625 | -10/Materials | Discovered new exit (range 15) 670 | -10/Materials | Identified exit to Mines 845 | -10/Materials | Discovered new exit (range 9) 995 | -10/Materials | Entered Mines 1000 | -10/Mines | Assisted by bots powering up and referring to "LRC-V3" 1026 | -10/Mines | Met a Derelict bent on vengeance 1076 | -10/Mines | Deemed a non-threat by the Exiles lab entrance 1077 | -10/Mines | Discovered new exit (range 5) 1425 | -10/Mines | Build established: Scavenger-Mutant 1451 | -10/Mines | Core integrity fell below 20% 1472 | -10/Mines | Lost 3 parts (1n1u1w) 1530 | -10/Mines | A weapon hastily lodged in a ceiling crevice suddenly fell to the ground 1643 | -10/Mines | Discovered new exit (range 12) 1954 | -10/Mines | Discovered new exit (range 12) 2123 | -10/Mines | Found a damaged Exp. Sensor Array with a note attached 2127 | -10/Mines | Found Prototype Device 2261 | -10/Mines | Entered Exiles 2262 | -10/Exiles | Identified exit to Mines 2309 | -10/Exiles | Met 8R-AWN 2341 | -10/Exiles | Met EX-HEX 2396 | -10/Exiles | Met EX-BIN 2419 | -10/Exiles | Aligned with FarCom system 2421 | -10/Exiles | Given EX-Vault access code 2467 | -10/Exiles | Opened EX-Vault 2484 | -10/Exiles | Found AWS/Gauss 2523 | -10/Exiles | Warned to stay clear of 0b10 Research branches 2580 | -10/Exiles | Met EX-DEC 2589 | -10/Exiles | Learned location of Zion (-7) 2609 | -10/Exiles | Attacked by the Exiles 2639 | -10/Exiles | Destroyed by as-78435 with Assembled Maul Last Messages --------------- World map updated: -7/Zion. >>Record "MSG001873-01*" PINNED - Anyone passing by a Warlord outpost feel free to stop in for assistance. Of course they lose outposts like a wild Derelict loses bolts, but one of the latest major bases seems to be at about -5 or -4, somewhere out beyond the Upper Caves. >>Record "MSG003537-01*" PINNED - Until our FarCom is fully operational, I strongly recommend anyone spending a while in 0b10 bring along sensors with decent range to avoid running into patrols. A Signal Interpreter is optional since I know you're all smart enough to figure out what most of the blips are by watching their behavior for a short while. >>Record "MSG004902-01*" PINNED - I saw a Programmer snooping around in the Mines recently, it's only a matter of time before they find us. We might need to prioritize getting out of here and finding a better environment less hostile to science. 02608_ Machine disabled. 02609_ EXILES: Hostile robot within lab perimeter. Defensive protocols time, folks! Map ----- +----------------------------------------------------+ | ?????????????????????????????????????????????????? | | ?????????????????????????????????????????????????? | | ?????????????????????????????????????????????????? | | ?????????????????????????????????????????????????? | | ?????????????????????????????????????????????????? | | ?????????????????????????????????????????????????? | | ?????????????????????????????????????????????????? | | ?????????????????????????????????????????????????? | | ?????????????????????????????????????????????????? | | ?????????????????????????????????????????????????? | | ?????????????????????????????????????????????????? | | ?????????????????????????????????????????????????? | | ?????????????????????????????????????????????????? | | ????????????>????????????????????????????????????? | | ?????????????????????????????????????????????????? | | ?????????????????????????????????????????????????? | | ?????????????????????????????????????????????????? | | ?????????????????????????????????????????????????? | | ???????????? ????????????????????????????????????? | | ???????????? ???????????????#######????????????? | | ???????????? ##?##????????#!!! "#????????????? | | ???????????# #""???????# "#????????????? | | ????????????# ??????# "#????????????? | | ?????????????#" #????## ""#????????????# | | ?????????????"" #####" ""#???????????? | | ???????????????# @a ##" ""#????????????" | | ????????????????# aa#"" #??????????????" | | ????????????????#"## #?????????????"" | | ???????????????????#### ##????????????"" | | ??????????????????????### "#???????????? | | ???????????????????????#" ###???????????" | | ??????????????????????""" ##??????????# | | ????????????????????? "###"" a ######???### | | ??????????????????? "#?##" a a """#####X# | | ??????????????????? ##??#" | | ???????????????????""""""###???#"# | | ???????????????????######??????#### | | ??????????????????????????????????### | | ????????????????????????????????????### | | ??????????????????????????????????????## | | ???????????????????????????????????????## | | ????????????????????????????????????????##" | | ?????????????????????????????????????????#""" | | ?????????????????????????????????????????#" | | ?????????????????????????????????????????"" | | ?????????????????????????????????????????""" | | ?????????????????????????????????????????"" | | ??????????????????????????????????????????" | | ?????????????????????????????????????????? | | ??????????????????????????????????????????" | +----------------------------------------------------+ Best States ------------- Heat Dissipation 39 Energy Generation 18 Energy Capacity 250 Matter Stores 300 Matter Capacity 300 Sight Range 16 Terrain Scan Density 10 Armor Coverage 150 Evasion (%) 41 Recoil Reduction 2 Item Schematics ----------------- None Robot Schematics ------------------ None Fabricated ------------ Nothing Alien Tech Used ----------------- None Achievements -------------- None Challenges ------------ None Game ------ Seed VortexAntimatterPropulsion Manual? 0 Play Time 00:11:12 Cumulative 165.3 hours Start 2024.02.05 @ 07:46:35 End 2024.02.05 @ 07:56:37 Sessions 1 Manual Loads 0 Difficulty Rogue Special Mode None Game No. 147 Rogue 147 Adventurer 0 Explorer 0 Win Type - Total 2 Types 2/0/0/0/0/0/0/0/0 Lore% 59 Gallery% 68 Achievement% 58 Wizard Run 0 Options --------- ASCII 0 Keyboard 1 Movement Numpad Keybinds 0 Fullscreen 2 Font 18/SmallcapsGlow Map View 76x50 Tactical HUD 1 Map Filters NONE Filters NONE Steam 1 RUN: 5644fb10-9001-4a9e-9c49-bb28ab57c157